Cogmind - Beta 13 @@@ ROGUE MODE // 2024.07.29 @ 18:18:46 Player: Norb Result: Destroyed by DAS Turret with DAS Cannon Performance ------------- Evolutions (0) 0 Regions Visited (3) 600 Robots Destroyed (5) 25 Value Destroyed (121) 121 Prototype IDs (0) 0 Alien Tech Used (0) 0 Bonus (-44) -44 TOTAL SCORE: 702 Bonus ------- Friendly Fire -44 Cogmind --------- Core Integrity 0/250 Matter 283/300 Energy 125/125 System Corruption 3% Temperature Cool (0) Movement Treading (160) Location -10/Exiles Parts ------- > --- POWER (1) -------- Light Ion Engine > --- PROPULSION (2) --- Light Treads Aluminum Leg > --- UTILITY (2) ------ Small Storage Unit Seismic Detector > --- WEAPON (2) ------- Particle Gun Mining Claw > --- INVENTORY (8) ---- Light Nuclear Core Improved Heat Sink Large Battery (200) Structural Scanner Light Assault Rifle Peak State ------------ > --- POWER ------------ Light Nuclear Core > --- PROPULSION ------- Light Treads Aluminum Leg > --- UTILITY ---------- Small Storage Unit Seismic Detector > --- WEAPON ----------- Particle Gun Mining Claw > --- INVENTORY -------- Improved Heat Sink Large Battery Structural Scanner [Rating: 10] Favorites ----------- Power Light Nuclear Core Engine Ion Engine Power Core Light Nuclear Core Propulsion Light Treads Treads Light Treads Leg Aluminum Leg Utility Small Storage Unit Device Seismic Detector Storage Small Storage Unit Weapon Particle Gun Energy Gun Particle Gun Slashing Weapon Mining Claw Build | -11 -10 -10 -10 ------- Run | Yrd Mat Min Exi Slots Evolved . | . . . . Power . | . . . . Propulsion . | . . . . Utility . | . . . . Weapon . | . . . . Parts Attached 15 | 6 7 1 1 Power 4 | 1 2 . 1 Engine 3 | 1 1 . 1 Core 1 | . 1 . . Reactor . | . . . . Propulsion 4 | 2 1 1 . Treads 3 | 2 . 1 . Leg 1 | . 1 . . Wheel . | . . . . Hover . | . . . . Flight . | . . . . Utility 3 | 1 2 . . Device 2 | . 2 . . Storage 1 | 1 . . . Processor . | . . . . Hackware . | . . . . Protection . | . . . . Artifact . | . . . . Weapon 4 | 2 2 . . Energy Gun 3 | 2 1 . . Energy Cannon . | . . . . Ballistic Gun . | . . . . Ballistic Cannon . | . . . . Launcher . | . . . . Special Weapon . | . . . . Impact Weapon . | . . . . Slashing Weapon 1 | . 1 . . Piercing Weapon . | . . . . Special Melee Weapon . | . . . . Unidentified Prototypes . | . . . . Parts Lost 6 | . 6 . . Power 2 | . 2 . . Propulsion 2 | . 2 . . Utility . | . . . . Weapon 2 | . 2 . . Highest Loss Streak 6 | . 6 . . To Critical Strikes . | . . . . Average Slot Usage (%) 86 | . 75 100 100 Engine 7 | . 6 . 13 Core 7 | . 7 14 . Treads 11 | . 9 14 14 Leg 10 | . 7 14 14 Device 11 | . 10 14 14 Storage 14 | . 14 14 14 Energy Gun 14 | . 14 14 14 Slashing Weapon 9 | . 5 14 14 Naked Turns . | . . . . Heaviest Build 16 | 14 16 16 16 Greatest Support 40 | 40 40 20 20 Greatest Overweight (x) 3 | . 3 . . Average Overweight (x) . | . . . . Largest Inventory Capacity 8 | 8 8 8 8 Average Capacity 7 | 6 8 8 8 Most Carried 5 | 2 4 5 5 Average Carried 2 | . 1 4 5 Final Capacity 8 | 8 8 8 8 Final Carried 5 | 1 4 5 5 Class Distribution -------------------- 100% | Mutant Dominant Class ---------------- Mutant | -10/Materials Mutant | -10/Mines Mutant | -10/Exiles Resources | -11 -10 -10 -10 ----------- Run | Yrd Mat Min Exi Matter Collected 253 | 194 30 29 . Remotely . | . . . . Salvage Created 126 | . 88 38 . Parts 16 | . 8 8 . Haulers Intercepted . | . . . . Recyclers Shooed . | . . . . Parts Field Recycled . | . . . . Retrieved Matter . | . . . . Parts Self-Destructed . | . . . . Prevented . | . . . . Kills | -11 -10 -10 -10 ------- Run | Yrd Mat Min Exi Combat Hostiles Destroyed 5 | . 2 3 . Melee 1 | . 1 . . Guns 4 | . 1 3 . Classes Destroyed 2 | . 1 1 . Swarmer 3 | . . 3 . Grunt 2 | . 2 . . Best Kill Streak 3 | . 1 3 . Combat Bots Only 3 | . 1 3 . Max Kills in Single Turn 1 | . 1 1 . Gunslinging . | . . . . Exploded . | . . . . Melee 1 | . 1 . . Uniques/NPCs Destroyed . | . . . . Combat | -11 -10 -10 -10 -------- Run | Yrd Mat Min Exi Hostile Shots Fired 100 | . 70 29 1 Missed 16 | . 11 5 . Damage Taken 1101 | . 840 196 65 Core 292 | . 165 62 65 Absorbed by Shields . | . . . . Core Remaining (%) 100 | 100 . . . Volleys Fired 28 | . 19 9 . Largest 2 | . 2 1 . Hottest 100 | . 100 65 . Shots Fired 34 | . 25 9 . Gun 34 | . 25 9 . Cannon . | . . . . Launcher . | . . . . Special . | . . . . Kinetic . | . . . . Thermal 34 | . 25 9 . Explosive . | . . . . Electromagnetic . | . . . . Robot Hit Streak 6 | . 6 4 . Robot Miss Streak 3 | . 1 3 . Penetration Max . | . . . . Secondary Targets . | . . . . Shots Hit Robots 18 | . 13 4 1 Core Hits 18 | . 15 3 . Critical Kills . | . . . . Critical Parts Destroyed . | . . . . Critical Strikes . | . . . . Melee Attacks 4 | . . 3 1 Impact . | . . . . Slashing 4 | . . 3 1 Piercing . | . . . . Sneak Attacks . | . . . . Combat Hostiles . | . . . . Follow-up Attacks . | . . . . Damage Inflicted 293 | . 187 62 44 Guns 221 | . 159 62 . Cannons . | . . . . Explosions . | . . . . Melee 44 | . . . 44 Ramming 28 | . 28 . . Kinetic . | . . . . Thermal 221 | . 159 62 . Explosive . | . . . . Electromagnetic . | . . . . Impact . | . . . . Slashing 44 | . . . 44 Piercing . | . . . . Highest Corruption 3 | . 3 3 3 Average Corruption 2 | . 2 3 3 Corruption Purged . | . . . . Corruption Blocked . | . . . . Effects 8 | . 5 2 1 Message Errors 3 | . 2 1 . Matter Fused 1 | . 1 . . Heat Flow Errors 1 | . 1 . . Energy Discharges 3 | . 1 1 1 Overload Shots . | . . . . Overflow Damage . | . . . . Projectiles . | . . . . Explosions . | . . . . Melee . | . . . . Knockbacks 1 | . 1 . . Impact 1 | . 1 . . Kinetic . | . . . . Secondary . | . . . . Self-Inflicted Damage 6 | . 6 . . Shots . | . . . . Rammed 23 | . 23 . . Targets Rammed 23 | . 23 . . Kicked . | . . . . Crushed . | . . . . Highest Temperature 279 | . 279 168 . Average Temperature 113 | . 128 67 . Received Heat Transfer 528 | . 528 . . Effects 1 | . 1 . . Energy Bleed 1 | . 1 . . Siege Activations . | . . . . Robots Corrupted . | . . . . Combat Hostiles . | . . . . Parts Fried . | . . . . Impact Corruptions . | . . . . Robots Melted . | . . . . Combat Hostiles . | . . . . Parts Melted 2 | . 1 1 . Heat Transferred 629 | . 481 148 . Parts Sabotaged . | . . . . Parts Stolen . | . . . . Parts Stripped . | . . . . Power Chain Reactions . | . . . . Alert | -11 -10 -10 -10 ------- Run | Yrd Mat Min Exi Peak Influence 87 | . 45 87 . Initial 17 | . . 17 . Average 30 | . 20 77 . Maximum Alert Level . | . . . . Low Security (%) 100 | 100 100 100 . Level 1 . | . . . . Level 2 . | . . . . Level 3 . | . . . . Level 4 . | . . . . Level 5 . | . . . . High Security . | . . . . Max Security . | . . . . Squads Dispatched . | . . . . Investigation . | . . . . Extermination . | . . . . Reinforcement . | . . . . Assault . | . . . . Garrison . | . . . . Intercept . | . . . . Searches Triggered . | . . . . Construction Impeded . | . . . . Haulers Reinforced . | . . . . Active Scanning Responses . | . . . . Cargo Convoy Interrupts . | . . . . Stealth | -11 -10 -10 -10 --------- Run | Yrd Mat Min Exi Distress Signals . | . . . . Communications Jammed . | . . . . Distress Signals . | . . . . Times Spotted 6 | . 2 3 1 Peak Tracking Total 3 | . 2 3 . Tactical Retreats . | . . . . Traps | -11 -10 -10 -10 ------- Run | Yrd Mat Min Exi Traps Triggered . | . . . . Indirectly . | . . . . Trap Hack Attempts . | . . . . Triggered . | . . . . Disarmed . | . . . . Reprogrammed . | . . . . Reused . | . . . . Traps Extracted . | . . . . Installed . | . . . . Triggered . | . . . . Machines | -11 -10 -10 -10 ---------- Run | Yrd Mat Min Exi Machines Disabled 1 | . 1 . . Max in Single Turn 1 | . 1 . . Machines Repaired . | . . . . Machines Dismantled . | . . . . Machines Sabotaged . | . . . . Overloaded Fab Kills . | . . . . Hacking | -11 -10 -10 -10 --------- Run | Yrd Mat Min Exi Machines Accessed . | . . . . Terminals . | . . . . Fabricators . | . . . . Repair Stations . | . . . . Recycling Units . | . . . . Scanalyzers . | . . . . Garrison Access . | . . . . Total Hacks . | . . . . Successful . | . . . . Failed . | . . . . Catastrophic . | . . . . Database Lockouts . | . . . . Manual . | . . . . Terminals . | . . . . Fabricators . | . . . . Repair Stations . | . . . . Recycling Units . | . . . . Scanalyzers . | . . . . Garrison Access . | . . . . Terminal Hacks . | . . . . Fabricator Hacks . | . . . . Repair Station Hacks . | . . . . Recycling Unit Hacks . | . . . . Scanalyzer . | . . . . Garrison Access Hacks . | . . . . Unauthorized Hacks . | . . . . Terminals . | . . . . Fabricators . | . . . . Repair Stations . | . . . . Recycling Units . | . . . . Scanalyzers . | . . . . Garrison Access . | . . . . Data Cores Recovered . | . . . . Used . | . . . . Hacking Detections . | . . . . Full Trace Events . | . . . . Feedback Events . | . . . . Feedback Blocked . | . . . . Robot Schematics Acquired . | . . . . Robots Built . | . . . . Authchips . | . . . . Time . | . . . . Total Robot Build Rating . | . . . . Part Schematics Acquired . | . . . . Parts Built . | . . . . Authchips . | . . . . Time . | . . . . Total Part Build Rating . | . . . . Parts Repaired . | . . . . Time . | . . . . Parts Recycled . | . . . . Recycled Matter . | . . . . Retrieved Matter . | . . . . Retrieved Components . | . . . . Parts Scanalyzed . | . . . . Part Schematics Acquired . | . . . . Parts Damaged . | . . . . Bothacking | -11 -10 -10 -10 ------------ Run | Yrd Mat Min Exi Used RIF Installer . | . . . . Robots Hacked . | . . . . Non-combat . | . . . . Combat . | . . . . Robot Hacks Applied . | . . . . Relay Couplers Released . | . . . . Fabnet Peak Effective % . | . . . . Robots Rewired . | . . . . Allies Hacked . | . . . . Hacks Repelled . | . . . . Allies | -11 -10 -10 -10 -------- Run | Yrd Mat Min Exi Total Allies . | . . . . Largest Group . | . . . . Highest-Rated Group . | . . . . Highest-Rated Ally . | . . . . Total Orders . | . . . . Ally Attacks . | . . . . Total Damage . | . . . . Kills . | . . . . Allies Corrupted . | . . . . Allies Melted . | . . . . Intel | -11 -10 -10 -10 ------- Run | Yrd Mat Min Exi Robot Analysis Total . | . . . . Derelict Logs Recovered 1 | . . 1 . Drone Launches . | . . . . Drone Recoveries . | . . . . Exploration | -11 -10 -10 -10 ------------- Run | Yrd Mat Min Exi Turns Passed 767 | 82 362 131 192 Spaces Moved 378 | 55 143 63 117 Core 27 | 16 11 . . Treads 265 | 39 46 63 117 Legs 86 | . 86 . . Wheels . | . . . . Hover . | . . . . Flight . | . . . . Fastest Speed 50 | 50 100 160 160 Average Speed 163 | 128 180 160 160 Slowest Speed 200 | 160 200 160 160 Overloaded Moves . | . . . . Propulsion Burnouts . | . . . . Robots Hopped . | . . . . Cave-ins Triggered . | . . . . Exploration Rate (%) 16 | 4 21 12 29 Regions Visited 3 Branch Regions 2 Pre-discovered Areas . | . . . . Known Exits Taken . | . . . . Unknown Exits Taken 3 | 1 1 1 . Scrap Searched . | . . . . Spaces Dug . | . . . . Terrain Destroyed . | . . . . Melee . | . . . . Projectile . | . . . . AOE . | . . . . Terrain Rammed . | . . . . Walls Destroyed . | . . . . Machines Disabled . | . . . . Actions | -11 -10 -10 -10 --------- Run | Yrd Mat Min Exi Total 470 | 67 206 78 119 Wait 7 | . 6 1 . Move 375 | 54 142 62 117 Hop . | . . . . Pick Up 18 | 7 9 2 . Fast Attach . | . . . . Attach 13 | 6 6 1 . Detach . | . . . . Swap 2 | . 1 . 1 Drop . | . . . . Fire 28 | . 19 9 . Melee 4 | . . 3 1 Ram 15 | . 15 . . Kick . | . . . . Crush 8 | . 8 . . Escape Stasis . | . . . . Rewire . | . . . . Trap . | . . . . Miscellaneous . | . . . . Route ------- -11/Scrapyard -10/Materials -10/Mines -10/Exiles (discovered 1 exit: [*Min]) History --------- Turn | Location | Event 18 | -11/Scrapyard | Discovered new exit (range 16) 83 | -11/Scrapyard | Entered Materials 226 | -10/Materials | Core integrity fell below 50% 272 | -10/Materials | Lost 6 parts (2p2n2w) 310 | -10/Materials | Build established: Mutant 411 | -10/Materials | Discovered new exit (range 8) 445 | -10/Materials | Entered Mines 459 | -10/Mines | Core integrity fell below 20% 513 | -10/Mines | Learned Materials security intel 566 | -10/Mines | Discovered new exit (range 3) 576 | -10/Mines | Entered Exiles 623 | -10/Exiles | Discovered new exit (range 15) 656 | -10/Exiles | Met 8R-AWN 706 | -10/Exiles | Met EX-HEX 766 | -10/Exiles | Attacked by the Exiles 768 | -10/Exiles | Destroyed by DAS Turret with DAS Cannon Last Messages --------------- pattern or logic. It's almost like the early stages of some sort of... evolution. I'd love to just go ask the Imprinter what all this is about, she must know something, but I doubt that would end well. The Zionites will tell you those Marauders at the gates are defenses set up by Warlord... Nope, the Imprinter put them there mostly to keep us out! Anyway, I've got to get back to poking and prodding these nasty little guys. Go see BIN. I can't imagine you'll want to stay in our boring little cave for long, and we could use some help with the project in the back. K2-2Z2(z): Why did DEC have to put these flashy spikey things everywhere, they really get in the way, you know? 00765_ Sneak attack on A-02 Transporter. 00766_ EXILES: Hostile robot within lab perimeter. Defensive protocols time, folks! Map ----- +----------------------------------------------------+ | ?????????????????????????????????????????????????? | | ?????????????????????????????????????????????????? | | ?????????????????????????????????????????????????? | | ?????????????????????????????????????????????????? | | ?????????????????????????????????????????????????? | | ?????????????????????????????????????????????????? | | ?????????????????????????????????????????????????? | | ?????????????????????????????????????????????????? | | ?????????????????????????????????????????????????? | | ?????????????????????????????????????????????????? | | ?????????????????????????????????????????????????? | | ?????????????????????????????????????????????????? | | ????????????????????????????????????? "" " ?? | | ???????????????????????????????????? " """ | | ?????????????????????????????????? " " | | ????????????????????????????????? " " | | ????????????????????????????????? " | | ?????????????????????????????????? | | ?????????????????????????????????? | | ?????????????????????????????????""" | | ?????????????????????????????????#""" | | ???????????? ????????????????????#"""" | | ??????????? ????????????????##"" | | ??????????? ???#####??####"""" | | ?????????? ##aaa####""" | | ?????????? @ """" | | ?????????? z | | ?????????? | | ?????????? " | | ??????????? " "" """ | | ??????????? ""## ##""" " " ""#" | | ???????????? ""#### ######""" """##""""" | | ???????????? """"#???# #????###""""######## | | ???????????? """????# #??????######??????? | | ????????????? ""#????! ??????????????????? | | ????????????? "???????#" ?????????????????? | | ?????????????? ??????????#" ?????????????????? | | ???????????????????????????!!""!"????????????????? | | ???????????????????????????######????????????????? | | ?????????????????????????????????????????????????? | | ?????????????????????????????????????????????????? | | ?????????????????????????????????????????????????? | | ?????????????????????????????????????????????????? | | ?????????????????????????????????????????????????? | | ?????????????????????????????????????????????????? | | ?????????????????????????????????????????????????? | | ?????????????????????????????????????????????????? | | ?????????????????????????????????????????????????? | | ?????????????????????????????????????????????????? | | ?????????????????????????????????????????????????? | +----------------------------------------------------+ Best States ------------- Heat Dissipation 25 Energy Generation 14 Energy Capacity 250 Matter Stores 300 Matter Capacity 300 Sight Range 16 Terrain Scan Density 10 Evasion (%) 50 Recoil Reduction 2 Item Schematics ----------------- None Robot Schematics ------------------ None Fabricated ------------ Nothing Alien Tech Used ----------------- None Achievements -------------- None Challenges ------------ None Game ------ Seed FireFluxExoskeleton Manual? 0 Play Time 00:08:41 Cumulative 9.4 hours Start 2024.07.29 @ 18:11:22 End 2024.07.29 @ 18:18:46 Sessions 1 Manual Loads 0 Difficulty Rogue Special Mode None Game No. 11 Rogue 11 Adventurer 0 Explorer 0 Win Type - Total 0 Types 0/0/0/0/0/0/0/0/0 Lore% 14 Gallery% 14 Achievement% 15 Wizard Run 0 Options --------- Layout 1 ASCII 0 Keyboard 1 Movement Arrows Keybinds 0 Fullscreen 2 Font 24/Terminus Map View 50x35 Zoom Use 0% Tactical HUD 1 Map Filters NONE Filters NONE Steam 1 RUN: c02bbc3b-8642-4759-b5b7-6a0d20a89b00